[Event "Early-Titled-Tuesday-Blitz-February-27-2024"]
[Site "Chess.com"]
[Date "2024.02.27"]
[Round "9"]
[White "Jospem"]
[Black "dretch"]
[Result "1-0"]
[WhiteElo "3073"]
[BlackElo "2886"]
[TimeControl "180+1"]
[EndTime "9:46:38 PST"]
[Termination "Jospem won by resignation"]

1. e4 {[%clk 0:03:00.9]} 1... e6 {[%clk 0:03:00.2]} 2. d4 {[%clk 0:03:01.6]}
2... d5 {[%clk 0:03:00.7]} 3. exd5 {[%clk 0:03:02.5]} 3... exd5 {[%clk
0:03:00.9]} 4. Nf3 {[%clk 0:03:03.4]} 4... Bd6 {[%clk 0:03:00.9]} 5. h3 {[%clk
0:03:04]} 5... Nf6 {[%clk 0:03:00.1]} 6. c4 {[%clk 0:03:03.9]} 6... O-O {[%clk
0:02:59]} 7. c5 {[%clk 0:02:56.4]} 7... Re8+ {[%clk 0:02:56.1]} 8. Be2 {[%clk
0:02:56.8]} 8... Bf8 {[%clk 0:02:56.3]} 9. O-O {[%clk 0:02:57.5]} 9... Ne4
{[%clk 0:02:50.5]} 10. Nc3 {[%clk 0:02:53]} 10... Nxc3 {[%clk 0:02:49.7]} 11.
bxc3 {[%clk 0:02:52.7]} 11... b6 {[%clk 0:02:50.4]} 12. cxb6 {[%clk 0:02:39.7]}
12... axb6 {[%clk 0:02:50.4]} 13. Bd3 {[%clk 0:02:24.9]} 13... g6 {[%clk
0:02:16.4]} 14. Ne5 {[%clk 0:02:17.4]} 14... Ba6 {[%clk 0:02:12.8]} 15. Qf3
{[%clk 0:02:13.3]} 15... f6 {[%clk 0:02:02.5]} 16. Bxa6 {[%clk 0:02:09.5]} 16...
Rxa6 {[%clk 0:02:01.5]} 17. Ng4 {[%clk 0:02:07.7]} 17... Re6 {[%clk 0:01:46.5]}
18. Bf4 {[%clk 0:02:04.3]} 18... b5 {[%clk 0:01:36]} 19. Rfb1 {[%clk 0:01:53.3]}
19... Reb6 {[%clk 0:01:29.5]} 20. Ne3 {[%clk 0:01:47.4]} 20... c6 {[%clk
0:01:24.6]} 21. Ng4 {[%clk 0:01:33]} 21... f5 {[%clk 0:01:14.7]} 22. Ne5 {[%clk
0:01:30.5]} 22... Nd7 {[%clk 0:01:13.8]} 23. Nxd7 {[%clk 0:01:19.6]} 23... Qxd7
{[%clk 0:01:13.7]} 24. Re1 {[%clk 0:01:20.5]} 24... Ra8 {[%clk 0:01:11.5]} 25.
h4 {[%clk 0:01:20.5]} 25... Rba6 {[%clk 0:01:09.8]} 26. Qe2 {[%clk 0:00:53.4]}
26... Ra3 {[%clk 0:01:00.1]} 27. Qd2 {[%clk 0:00:53.6]} 27... R3a4 {[%clk
0:00:39.5]} 28. h5 {[%clk 0:00:51.3]} 28... b4 {[%clk 0:00:35]} 29. Reb1 {[%clk
0:00:39.4]} 29... bxc3 {[%clk 0:00:32.4]} 30. Qxc3 {[%clk 0:00:40.3]} 30... Ra3
{[%clk 0:00:24.8]} 31. Qc2 {[%clk 0:00:35.2]} 31... gxh5 {[%clk 0:00:22.7]} 32.
Re1 {[%clk 0:00:27.4]} 32... h4 {[%clk 0:00:20.6]} 33. Kh2 {[%clk 0:00:23.5]}
33... Bd6 {[%clk 0:00:17.5]} 34. Be5 {[%clk 0:00:24.2]} 34... Be7 {[%clk
0:00:17.7]} 35. Re3 {[%clk 0:00:22.8]} 35... Bg5 {[%clk 0:00:17.7]} 36. Rf3
{[%clk 0:00:19.3]} 36... h6 {[%clk 0:00:14.9]} 37. Rxf5 {[%clk 0:00:17]} 37...
Qh7 {[%clk 0:00:14.4]} 38. Rxg5+ {[%clk 0:00:08.4]} 38... hxg5 {[%clk
0:00:14.5]} 39. Qxc6 {[%clk 0:00:09.3]} 39... R3a5 {[%clk 0:00:09]} 40. Qf6
{[%clk 0:00:09.8]} 40... R5a6 {[%clk 0:00:08.4]} 41. Qxg5+ {[%clk 0:00:07.6]}
41... Rg6 {[%clk 0:00:08.6]} 42. Qe3 {[%clk 0:00:06.9]} 42... Rf8 {[%clk
0:00:08.7]} 43. a4 {[%clk 0:00:05.8]} 43... Qd7 {[%clk 0:00:08.3]} 44. a5 {[%clk
0:00:04.2]} 44... Qg4 {[%clk 0:00:07]} 45. Rg1 {[%clk 0:00:03.4]} 45... h3
{[%clk 0:00:06.7]} 46. g3 {[%clk 0:00:02]} 46... Rf3 {[%clk 0:00:06.7]} 47. Qe1
{[%clk 0:00:01.6]} 47... Qf5 {[%clk 0:00:06.8]} 48. Bf4 {[%clk 0:00:02]} 48...
Rxf4 {[%clk 0:00:06.2]} 49. gxf4 {[%clk 0:00:02.9]} 49... Qxf4+ {[%clk
0:00:06.8]} 50. Rg3 {[%clk 0:00:03.5]} 50... Rxg3 {[%clk 0:00:04.4]} 51. fxg3
{[%clk 0:00:04.4]} 51... Qxd4 {[%clk 0:00:04.3]} 52. Qe6+ {[%clk 0:00:04.7]}
52... Kf8 {[%clk 0:00:04.3]} 53. Qf5+ {[%clk 0:00:04.4]} 53... Ke7 {[%clk
0:00:04.2]} 54. Qg5+ {[%clk 0:00:04.1]} 54... Kd7 {[%clk 0:00:04.2]} 55. Kxh3
{[%clk 0:00:04]} 55... Kc6 {[%clk 0:00:03.8]} 56. a6 {[%clk 0:00:03.6]} 56...
Kb6 {[%clk 0:00:03.7]} 57. Qg6+ {[%clk 0:00:04.1]} 57... Ka7 {[%clk 0:00:04]}
58. Qe6 {[%clk 0:00:02.2]} 58... Qh8+ {[%clk 0:00:03.9]} 59. Kg2 {[%clk
0:00:02.2]} 59... Qb2+ {[%clk 0:00:03.7]} 60. Kh3 {[%clk 0:00:02.9]} 60... Qh8+
{[%clk 0:00:03.9]} 61. Kg4 {[%clk 0:00:03.5]} 61... Qg7+ {[%clk 0:00:04.3]} 62.
Kf4 {[%clk 0:00:03.9]} 62... Qf8+ {[%clk 0:00:04.4]} 63. Kg5 {[%clk 0:00:01.9]}
63... Qg7+ {[%clk 0:00:04.4]} 64. Kf4 {[%clk 0:00:02.6]} 64... Qd4+ {[%clk
0:00:04.3]} 65. Kg5 {[%clk 0:00:01.9]} 65... Qg7+ {[%clk 0:00:04.2]} 66. Kh4
{[%clk 0:00:02.8]} 66... d4 {[%clk 0:00:04]} 67. g4 {[%clk 0:00:02.8]} 67...
Qh7+ {[%clk 0:00:03.8]} 68. Kg3 {[%clk 0:00:03]} 68... d3 {[%clk 0:00:04.2]} 69.
g5 {[%clk 0:00:03.3]} 69... Qc7+ {[%clk 0:00:04.2]} 70. Kf3 {[%clk 0:00:03.3]}
70... Qc3 {[%clk 0:00:04.2]} 71. Qe3+ {[%clk 0:00:03.5]} 71... Kxa6 {[%clk
0:00:04.3]} 72. g6 {[%clk 0:00:04.1]} 72... Qf6+ {[%clk 0:00:04.4]} 73. Qf4
{[%clk 0:00:03.2]} 73... Qxg6 {[%clk 0:00:05.3]} 74. Qa4+ {[%clk 0:00:02.7]}
74... Kb6 {[%clk 0:00:05.1]} 75. Qb4+ {[%clk 0:00:03.4]} 75... Kc6 {[%clk
0:00:05.7]} 76. Qc4+ {[%clk 0:00:03.7]} 76... Kd6 {[%clk 0:00:05.7]} 77. Qa6+
{[%clk 0:00:04]} 77... Ke5 {[%clk 0:00:06.2]} 78. Qxg6 {[%clk 0:00:04.5]} 78...
Kd4 {[%clk 0:00:07.1]} 79. Qd6+ {[%clk 0:00:03.1]} 79... Kc4 {[%clk 0:00:07.2]}
80. Ke3 {[%clk 0:00:03.8]} 1-0

[Event "Early-Titled-Tuesday-Blitz-February-27-2024"]
[Site "Chess.com"]
[Date "2024.02.27"]
[Round "9"]
[White "andrzej"]
[Black "TioCridineno"]
[Result "1-0"]
[WhiteElo "2512"]
[BlackElo "2409"]
[TimeControl "180+1"]
[EndTime "9:46:39 PST"]
[Termination "andrzej won on time"]

1. e4 {[%clk 0:03:00.9]} 1... c5 {[%clk 0:02:37.3]} 2. Nf3 {[%clk 0:03:00.9]}
2... Nc6 {[%clk 0:02:36.9]} 3. d4 {[%clk 0:03:01.3]} 3... cxd4 {[%clk
0:02:37.1]} 4. Nxd4 {[%clk 0:03:02.2]} 4... Nf6 {[%clk 0:02:37.3]} 5. Nc3 {[%clk
0:03:02.1]} 5... e5 {[%clk 0:02:38]} 6. Ndb5 {[%clk 0:03:01.8]} 6... d6 {[%clk
0:02:38.3]} 7. Bg5 {[%clk 0:03:01.6]} 7... a6 {[%clk 0:02:38.8]} 8. Na3 {[%clk
0:03:02.2]} 8... b5 {[%clk 0:02:39]} 9. Nd5 {[%clk 0:03:02.8]} 9... Be7 {[%clk
0:02:38.9]} 10. Bxf6 {[%clk 0:03:03.1]} 10... Bxf6 {[%clk 0:02:39.6]} 11. c4
{[%clk 0:03:03.7]} 11... Nd4 {[%clk 0:02:39.6]} 12. cxb5 {[%clk 0:02:59.8]}
12... O-O {[%clk 0:02:39.3]} 13. Bc4 {[%clk 0:02:57.1]} 13... Be6 {[%clk
0:02:36]} 14. O-O {[%clk 0:02:54.1]} 14... axb5 {[%clk 0:02:33.1]} 15. Nxb5
{[%clk 0:02:48.2]} 15... Qa5 {[%clk 0:02:22.4]} 16. b4 {[%clk 0:02:33.7]} 16...
Bxd5 {[%clk 0:01:56.3]} 17. bxa5 {[%clk 0:02:08.6]} 17... Bxc4 {[%clk
0:01:56.3]} 18. Nxd4 {[%clk 0:02:08.7]} 18... exd4 {[%clk 0:01:50.5]} 19. Re1
{[%clk 0:02:08.7]} 19... Rxa5 {[%clk 0:01:46.1]} 20. a4 {[%clk 0:02:05.2]} 20...
Rfa8 {[%clk 0:01:45.1]} 21. h4 {[%clk 0:01:53.5]} 21... h6 {[%clk 0:01:41.7]}
22. g3 {[%clk 0:01:52.8]} 22... d3 {[%clk 0:01:39.2]} 23. Ra3 {[%clk 0:01:49.2]}
23... Bb5 {[%clk 0:01:07.8]} 24. Rxd3 {[%clk 0:01:37.3]} 24... Bxa4 {[%clk
0:01:04.6]} 25. Qf3 {[%clk 0:01:28.5]} 25... Be7 {[%clk 0:01:04.4]} 26. e5
{[%clk 0:01:22.5]} 26... dxe5 {[%clk 0:01:03]} 27. Rxe5 {[%clk 0:01:20.5]} 27...
Bf6 {[%clk 0:00:50.8]} 28. Rxa5 {[%clk 0:01:17.8]} 28... Rxa5 {[%clk 0:00:50.5]}
29. Ra3 {[%clk 0:01:15.9]} 29... Bc6 {[%clk 0:00:31.6]} 30. Qxc6 {[%clk
0:01:03.3]} 30... Rxa3 {[%clk 0:00:31.4]} 31. Qc8+ {[%clk 0:01:02.9]} 31... Kh7
{[%clk 0:00:28.8]} 32. Qf5+ {[%clk 0:01:03.2]} 32... Kg8 {[%clk 0:00:27.3]} 33.
Kg2 {[%clk 0:00:56.2]} 33... Ra8 {[%clk 0:00:16.2]} 34. Kh3 {[%clk 0:00:52.2]}
34... Re8 {[%clk 0:00:14.6]} 35. g4 {[%clk 0:00:49.8]} 35... Re5 {[%clk
0:00:14.5]} 36. Qc8+ {[%clk 0:00:49]} 36... Kh7 {[%clk 0:00:14.9]} 37. Qc2+
{[%clk 0:00:49.2]} 37... g6 {[%clk 0:00:13.9]} 38. Kg3 {[%clk 0:00:47.8]} 38...
Kg7 {[%clk 0:00:12.5]} 39. f3 {[%clk 0:00:45.1]} 39... g5 {[%clk 0:00:12.1]} 40.
h5 {[%clk 0:00:42.8]} 40... Re6 {[%clk 0:00:11.3]} 41. Qc4 {[%clk 0:00:36.4]}
41... Be5+ {[%clk 0:00:11.3]} 42. Kf2 {[%clk 0:00:35.9]} 42... Bf4 {[%clk
0:00:12.2]} 43. Qd4+ {[%clk 0:00:30.4]} 43... Be5 {[%clk 0:00:09.8]} 44. Qa4
{[%clk 0:00:29.3]} 44... Bf4 {[%clk 0:00:09.9]} 45. Qa1+ {[%clk 0:00:28.3]}
45... Be5 {[%clk 0:00:08.8]} 46. Qb1 {[%clk 0:00:28.5]} 46... Bf4 {[%clk
0:00:08.8]} 47. Qb2+ {[%clk 0:00:24.7]} 47... Be5 {[%clk 0:00:08.9]} 48. Qc2
{[%clk 0:00:24.8]} 48... Bf4 {[%clk 0:00:09.3]} 49. Kg2 {[%clk 0:00:24.4]} 49...
Be5 {[%clk 0:00:09.3]} 50. Qf5 {[%clk 0:00:23.9]} 50... Bf4 {[%clk 0:00:09.1]}
51. Qc2 {[%clk 0:00:24.3]} 51... Be5 {[%clk 0:00:08.9]} 52. Qd2 {[%clk
0:00:24.8]} 52... Bf4 {[%clk 0:00:09.1]} 53. Qa2 {[%clk 0:00:25]} 53... Be5
{[%clk 0:00:09.2]} 54. Kf1 {[%clk 0:00:23.4]} 54... Bf4 {[%clk 0:00:09.5]} 55.
Qc2 {[%clk 0:00:22.9]} 55... Be5 {[%clk 0:00:09.6]} 56. Ke2 {[%clk 0:00:20.3]}
56... Bf4+ {[%clk 0:00:10.1]} 57. Kd3 {[%clk 0:00:19.1]} 57... Re3+ {[%clk
0:00:10.2]} 58. Kd4 {[%clk 0:00:19]} 58... Re6 {[%clk 0:00:09.8]} 59. Kd5 {[%clk
0:00:17.9]} 59... Re5+ {[%clk 0:00:09.8]} 60. Kc6 {[%clk 0:00:17.2]} 60... Re6+
{[%clk 0:00:10.1]} 61. Kd7 {[%clk 0:00:17]} 61... Be5 {[%clk 0:00:07.8]} 62. Qf5
{[%clk 0:00:13]} 62... Bf4 {[%clk 0:00:02]} 63. Kd8 {[%clk 0:00:07.6]} 63... Re5
{[%clk 0:00:02]} 64. Qd3 {[%clk 0:00:05]} 64... Re6 {[%clk 0:00:02.9]} 65. Kc8
{[%clk 0:00:04.3]} 65... Re5 {[%clk 0:00:03.1]} 66. Kb7 {[%clk 0:00:04]} 66...
Re6 {[%clk 0:00:03.4]} 67. Kc8 {[%clk 0:00:03.7]} 67... Rf6 {[%clk 0:00:03.9]}
68. Qd4 {[%clk 0:00:03.6]} 68... Bg3 {[%clk 0:00:03.5]} 69. Kd7 {[%clk
0:00:02.9]} 69... Bf4 {[%clk 0:00:04]} 70. Ke8 {[%clk 0:00:02.8]} 70... Bg3
{[%clk 0:00:01.4]} 71. Ke7 {[%clk 0:00:03]} 71... Bd6+ {[%clk 0:00:01.4]} 72.
Ke8 {[%clk 0:00:03.1]} 72... Bf4 {[%clk 0:00:01.1]} 73. Qc3 {[%clk 0:00:03.3]}
1-0

[Event "Early-Titled-Tuesday-Blitz-February-27-2024"]
[Site "Chess.com"]
[Date "2024.02.27"]
[Round "9"]
[White "GodzillaChessYoutube"]
[Black "Mesa_1"]
[Result "1-0"]
[WhiteElo "2668"]
[BlackElo "2498"]
[TimeControl "180+1"]
[EndTime "9:46:42 PST"]
[Termination "GodzillaChessYoutube won by resignation"]

1. d4 {[%clk 0:03:00.9]} 1... Nf6 {[%clk 0:02:59.1]} 2. Bf4 {[%clk 0:03:00.8]}
2... d5 {[%clk 0:02:56.2]} 3. e3 {[%clk 0:03:00.2]} 3... e6 {[%clk 0:02:56.9]}
4. Nd2 {[%clk 0:02:59.3]} 4... c5 {[%clk 0:02:57.3]} 5. c3 {[%clk 0:02:58.9]}
5... Nc6 {[%clk 0:02:54.9]} 6. Ngf3 {[%clk 0:02:58.4]} 6... cxd4 {[%clk
0:02:52.9]} 7. exd4 {[%clk 0:02:58.2]} 7... Nh5 {[%clk 0:02:53.1]} 8. Be3 {[%clk
0:02:56.7]} 8... Bd6 {[%clk 0:02:52.1]} 9. Ne5 {[%clk 0:02:34.8]} 9... Nf6
{[%clk 0:02:51.1]} 10. Nd3 {[%clk 0:02:33.1]} 10... O-O {[%clk 0:02:47.4]} 11.
g3 {[%clk 0:02:29.3]} 11... e5 {[%clk 0:02:39.9]} 12. dxe5 {[%clk 0:02:28.5]}
12... Nxe5 {[%clk 0:02:40.8]} 13. Nxe5 {[%clk 0:02:18.9]} 13... Bxe5 {[%clk
0:02:41.7]} 14. Nf3 {[%clk 0:02:14]} 14... Ng4 {[%clk 0:02:35.1]} 15. Nxe5
{[%clk 0:02:10.6]} 15... Nxe5 {[%clk 0:02:36]} 16. Be2 {[%clk 0:02:05.5]} 16...
Bh3 {[%clk 0:02:33.6]} 17. Qd4 {[%clk 0:01:37.1]} 17... Bg2 {[%clk 0:02:29.5]}
18. Rg1 {[%clk 0:01:17.9]} 18... Nf3+ {[%clk 0:02:27.5]} 19. Bxf3 {[%clk
0:01:18.3]} 19... Bxf3 {[%clk 0:02:28.4]} 20. Qf4 {[%clk 0:01:10.7]} 20... Be4
{[%clk 0:02:21.4]} 21. f3 {[%clk 0:00:53.5]} 21... Bg6 {[%clk 0:02:18.3]} 22.
Kf2 {[%clk 0:00:53.3]} 22... Qd7 {[%clk 0:02:12.3]} 23. Rge1 {[%clk 0:00:49.4]}
23... a5 {[%clk 0:02:02.1]} 24. h4 {[%clk 0:00:44.4]} 24... Qb5 {[%clk
0:01:58.9]} 25. b3 {[%clk 0:00:39.5]} 25... h6 {[%clk 0:01:58.7]} 26. g4 {[%clk
0:00:38.4]} 26... a4 {[%clk 0:01:56.5]} 27. b4 {[%clk 0:00:38]} 27... Rfe8
{[%clk 0:01:49.8]} 28. h5 {[%clk 0:00:34.8]} 28... Bh7 {[%clk 0:01:49]} 29. Bd4
{[%clk 0:00:35.3]} 29... Qd3 {[%clk 0:01:45.8]} 30. g5 {[%clk 0:00:34.5]} 30...
Qc2+ {[%clk 0:01:10.1]} 31. Kg3 {[%clk 0:00:34]} 31... Qf5 {[%clk 0:00:33.6]}
32. Qxf5 {[%clk 0:00:33.8]} 32... Bxf5 {[%clk 0:00:34.5]} 33. gxh6 {[%clk
0:00:34.6]} 33... gxh6 {[%clk 0:00:35.3]} 34. Kf4 {[%clk 0:00:35.2]} 34... Rxe1
{[%clk 0:00:30.6]} 35. Rxe1 {[%clk 0:00:36.1]} 35... Bc2 {[%clk 0:00:23.4]} 36.
Rg1+ {[%clk 0:00:33.7]} 36... Kf8 {[%clk 0:00:23.9]} 37. Bg7+ {[%clk 0:00:34.1]}
37... Ke7 {[%clk 0:00:22.8]} 38. Bxh6 {[%clk 0:00:28.7]} 38... Rh8 {[%clk
0:00:22.5]} 39. Re1+ {[%clk 0:00:20.5]} 39... Kd7 {[%clk 0:00:20.2]} 40. Bg5
{[%clk 0:00:20.4]} 40... Rxh5 {[%clk 0:00:19.5]} 41. Re7+ {[%clk 0:00:21]} 41...
Kc6 {[%clk 0:00:20.2]} 42. Rxf7 {[%clk 0:00:20.5]} 42... a3 {[%clk 0:00:20.9]}
43. Bd8 {[%clk 0:00:16.7]} 43... Bb3 {[%clk 0:00:19.6]} 44. Rc7+ {[%clk
0:00:16.6]} 44... Kb5 {[%clk 0:00:18.8]} 45. Rxb7+ {[%clk 0:00:17]} 45... Kc4
{[%clk 0:00:19.1]} 46. Ra7 {[%clk 0:00:17.5]} 46... Bxa2 {[%clk 0:00:17.7]} 47.
Rxa3 {[%clk 0:00:18]} 47... Bb3 {[%clk 0:00:18.6]} 48. Bf6 {[%clk 0:00:17.8]}
48... Bc2 {[%clk 0:00:17.3]} 49. Bd4 {[%clk 0:00:18]} 49... Rf5+ {[%clk
0:00:17.5]} 50. Ke3 {[%clk 0:00:16.8]} 50... Rf8 {[%clk 0:00:18.4]} 51. Ra5
{[%clk 0:00:16.7]} 51... Re8+ {[%clk 0:00:15.4]} 52. Kd2 {[%clk 0:00:16.5]}
52... Bg6 {[%clk 0:00:13.4]} 53. Rc5+ {[%clk 0:00:16.4]} 53... Kb3 {[%clk
0:00:14.1]} 54. Rxd5 {[%clk 0:00:17]} 54... Bf7 {[%clk 0:00:13.5]} 55. Re5
{[%clk 0:00:16.3]} 55... Rg8 {[%clk 0:00:12.8]} 56. Ke3 {[%clk 0:00:16.2]} 56...
Bc4 {[%clk 0:00:13.1]} 57. b5 {[%clk 0:00:16]} 57... Kc2 {[%clk 0:00:12]} 58. b6
{[%clk 0:00:16.3]} 58... Ba6 {[%clk 0:00:11.5]} 59. Re7 {[%clk 0:00:16.4]} 59...
Kb3 {[%clk 0:00:08.3]} 60. Be5 {[%clk 0:00:16.7]} 60... Kc4 {[%clk 0:00:04.9]}
61. b7 {[%clk 0:00:16.6]} 61... Bxb7 {[%clk 0:00:03.8]} 62. Rxb7 {[%clk
0:00:17.5]} 62... Kd5 {[%clk 0:00:04]} 63. Rb5+ {[%clk 0:00:16.1]} 63... Kc4
{[%clk 0:00:04.2]} 64. Ra5 {[%clk 0:00:16.1]} 64... Rd8 {[%clk 0:00:03.5]} 65.
Ke4 {[%clk 0:00:15.9]} 65... Rd1 {[%clk 0:00:03.5]} 66. f4 {[%clk 0:00:16.2]}
66... Re1+ {[%clk 0:00:03.5]} 67. Kf5 {[%clk 0:00:16.6]} 67... Kd3 {[%clk
0:00:04.2]} 68. Rd5+ {[%clk 0:00:16.5]} 68... Kc4 {[%clk 0:00:04.2]} 69. Rd4+
{[%clk 0:00:15.8]} 69... Kc5 {[%clk 0:00:04.3]} 70. Re4 {[%clk 0:00:16.1]} 70...
Rf1 {[%clk 0:00:05.2]} 71. Ke6 {[%clk 0:00:16.1]} 71... Kc6 {[%clk 0:00:05.3]}
72. f5 {[%clk 0:00:16.5]} 72... Rf3 {[%clk 0:00:05.1]} 73. Rc4+ {[%clk
0:00:16.9]} 73... Kb5 {[%clk 0:00:05.2]} 74. Rf4 {[%clk 0:00:16.9]} 74... Kc5
{[%clk 0:00:06.1]} 75. Rxf3 {[%clk 0:00:16.8]} 1-0

[Event "Early-Titled-Tuesday-Blitz-February-27-2024"]
[Site "Chess.com"]
[Date "2024.02.27"]
[Round "9"]
[White "Zohid6"]
[Black "Njal28"]
[Result "0-1"]
[WhiteElo "2868"]
[BlackElo "3009"]
[TimeControl "180+1"]
[EndTime "9:46:43 PST"]
[Termination "Njal28 won on time"]

1. e4 {[%clk 0:03:00.9]} 1... e5 {[%clk 0:03:00.6]} 2. Nf3 {[%clk 0:03:00.9]}
2... Nc6 {[%clk 0:03:01.4]} 3. Bb5 {[%clk 0:03:00.6]} 3... a6 {[%clk 0:03:02]}
4. Ba4 {[%clk 0:03:00.9]} 4... Nf6 {[%clk 0:03:02.6]} 5. O-O {[%clk 0:03:00.3]}
5... d6 {[%clk 0:03:03.2]} 6. c3 {[%clk 0:02:52.1]} 6... Bd7 {[%clk 0:03:02.7]}
7. d4 {[%clk 0:02:51.6]} 7... g6 {[%clk 0:03:03.1]} 8. Re1 {[%clk 0:02:48.7]}
8... Bg7 {[%clk 0:03:02]} 9. h3 {[%clk 0:02:47.6]} 9... O-O {[%clk 0:03:00.6]}
10. Bc2 {[%clk 0:02:47.5]} 10... Nh5 {[%clk 0:02:59.1]} 11. a4 {[%clk
0:02:46.9]} 11... Qe8 {[%clk 0:02:57.8]} 12. a5 {[%clk 0:02:43.2]} 12... Kh8
{[%clk 0:02:58]} 13. Nbd2 {[%clk 0:02:02]} 13... f5 {[%clk 0:02:49.1]} 14. Ra3
{[%clk 0:02:01.7]} 14... f4 {[%clk 0:02:45.9]} 15. d5 {[%clk 0:01:50.6]} 15...
Nd8 {[%clk 0:02:34.3]} 16. b4 {[%clk 0:01:48]} 16... Nf7 {[%clk 0:02:16]} 17. c4
{[%clk 0:01:46.2]} 17... g5 {[%clk 0:02:16.3]} 18. Nh2 {[%clk 0:01:35.5]} 18...
Nf6 {[%clk 0:02:14.4]} 19. c5 {[%clk 0:01:32.9]} 19... h5 {[%clk 0:02:12.1]} 20.
Nc4 {[%clk 0:01:27.7]} 20... g4 {[%clk 0:02:08.8]} 21. h4 {[%clk 0:01:24.3]}
21... Bb5 {[%clk 0:01:57]} 22. Rc3 {[%clk 0:01:23.7]} 22... Rg8 {[%clk
0:01:55.3]} 23. g3 {[%clk 0:01:17.4]} 23... Nd7 {[%clk 0:01:30.3]} 24. cxd6
{[%clk 0:01:01.2]} 24... cxd6 {[%clk 0:01:31.2]} 25. Ba4 {[%clk 0:00:58.7]}
25... Rc8 {[%clk 0:01:23.5]} 26. Qc2 {[%clk 0:00:32.6]} 26... Bxa4 {[%clk
0:01:04.2]} 27. Qxa4 {[%clk 0:00:33.5]} 27... Nf6 {[%clk 0:00:51.2]} 28. Qc2
{[%clk 0:00:25.9]} 28... Qe7 {[%clk 0:00:45.7]} 29. Bd2 {[%clk 0:00:24]} 29...
Rge8 {[%clk 0:00:32.3]} 30. Rc1 {[%clk 0:00:19.1]} 30... Kg8 {[%clk 0:00:30.4]}
31. Nf1 {[%clk 0:00:17.8]} 31... Bh6 {[%clk 0:00:22.9]} 32. Qd3 {[%clk
0:00:17.9]} 32... Rc7 {[%clk 0:00:21.1]} 33. Nb6 {[%clk 0:00:18]} 33... Rxc3
{[%clk 0:00:21.1]} 34. Rxc3 {[%clk 0:00:18.9]} 34... Nh8 {[%clk 0:00:18.1]} 35.
Qc2 {[%clk 0:00:17.1]} 35... Qh7 {[%clk 0:00:17.2]} 36. Rc7 {[%clk 0:00:16.7]}
36... Qxe4 {[%clk 0:00:16.7]} 37. Qxe4 {[%clk 0:00:14.5]} 37... Nxe4 {[%clk
0:00:17.6]} 38. Rxb7 {[%clk 0:00:15]} 38... Ng6 {[%clk 0:00:04.1]} 39. Bc1
{[%clk 0:00:10]} 39... Rf8 {[%clk 0:00:04.5]} 40. Rc7 {[%clk 0:00:08.8]} 40...
Rf6 {[%clk 0:00:01.8]} 41. b5 {[%clk 0:00:07.4]} 41... axb5 {[%clk 0:00:01.2]}
42. a6 {[%clk 0:00:07.4]} 42... fxg3 {[%clk 0:00:01.2]} 43. fxg3 {[%clk
0:00:05.1]} 43... Bxc1 {[%clk 0:00:01.2]} 44. Rxc1 {[%clk 0:00:05.7]} 44... Rf3
{[%clk 0:00:01.5]} 45. a7 {[%clk 0:00:05.5]} 45... Ra3 {[%clk 0:00:02.3]} 46.
a8=Q+ {[%clk 0:00:04.7]} 46... Rxa8 {[%clk 0:00:03.2]} 47. Nxa8 {[%clk
0:00:05.3]} 47... b4 {[%clk 0:00:03.5]} 48. Rb1 {[%clk 0:00:05.6]} 48... Nc3
{[%clk 0:00:04]} 49. Rxb4 {[%clk 0:00:05.7]} 49... Nxd5 {[%clk 0:00:04.9]} 50.
Rb8+ {[%clk 0:00:06.2]} 50... Kf7 {[%clk 0:00:05.5]} 51. Nb6 {[%clk 0:00:05.7]}
51... Nc3 {[%clk 0:00:06]} 52. Rb7+ {[%clk 0:00:04.1]} 52... Ke6 {[%clk
0:00:06.4]} 53. Rg7 {[%clk 0:00:02.5]} 53... Ne7 {[%clk 0:00:06.8]} 54. Rh7
{[%clk 0:00:03.1]} 54... e4 {[%clk 0:00:07]} 55. Rh6+ {[%clk 0:00:03.4]} 55...
Kf7 {[%clk 0:00:06]} 56. Rxd6 {[%clk 0:00:03.3]} 56... Nf5 {[%clk 0:00:06.4]}
57. Rc6 {[%clk 0:00:02.7]} 57... Nd1 {[%clk 0:00:03.2]} 58. Nd5 {[%clk
0:00:02.2]} 58... e3 {[%clk 0:00:03.4]} 59. Nf4 {[%clk 0:00:03]} 59... Nf2
{[%clk 0:00:02.9]} 60. Rc7+ {[%clk 0:00:03.9]} 60... Kf6 {[%clk 0:00:03.3]} 61.
Rc2 {[%clk 0:00:04.4]} 61... Ne4 {[%clk 0:00:03.3]} 62. Nxh5+ {[%clk 0:00:04.7]}
62... Ke5 {[%clk 0:00:04]} 63. Kg2 {[%clk 0:00:05.3]} 63... Nd4 {[%clk
0:00:04.3]} 64. Ra2 {[%clk 0:00:04.7]} 64... e2 {[%clk 0:00:04.9]} 65. Ra1
{[%clk 0:00:02.4]} 65... Nc2 {[%clk 0:00:03.2]} 66. Nh2 {[%clk 0:00:01.6]} 66...
Nxa1 {[%clk 0:00:03]} 67. Nxg4+ {[%clk 0:00:01.4]} 67... Kd4 {[%clk 0:00:03.7]}
68. Nh2 {[%clk 0:00:01.5]} 68... Nd2 {[%clk 0:00:03.2]} 69. Nf3+ {[%clk
0:00:02.4]} 69... Nxf3 {[%clk 0:00:03.8]} 0-1